Cogmind - Beta 9.2 @@@ ROGUE MODE // 2019.12.11 @ 20:46:16 Player: RNGesus Result: Destroyed by D-53 Grenadier with Mini Grenade Launcher Performance ------------- Evolutions (0) 0 Regions Visited (2) 400 Robots Destroyed (25) 125 Value Destroyed (600) 600 Prototype IDs (0) 0 Alien Tech Used (0) 0 Bonus (0) 0 TOTAL SCORE: 1125 Bonus ------- None Cogmind --------- Core Integrity 0/250 Matter 224/300 Energy 100/100 System Corruption 0% Temperature Cool (0) Movement Walking (150) Ox1 Location -10/Mines Parts ------- > --- POWER (1) -------- (None) > --- PROPULSION (2) --- Aluminum Leg Aluminum Leg > --- UTILITY (2) ------ Large Storage Unit Large Storage Unit > --- WEAPON (2) ------- Grenade Launcher > --- INVENTORY (16) --- Light Ion Engine Aluminum Leg Aluminum Leg Aluminum Leg Medium Storage Unit Signal Interpreter Advanced Signal Interpreter Transport Network Coupler Light Armor Plating Hacking Suite Hacking Suite System Shield Plasma Cutter Peak State ------------ > --- POWER ------------ Ion Engine > --- PROPULSION ------- Aluminum Leg Aluminum Leg > --- UTILITY ---------- Large Storage Unit Large Storage Unit > --- WEAPON ----------- Shock Rifle Ion Cannon > --- INVENTORY -------- Light Ion Engine Aluminum Leg Aluminum Leg Aluminum Leg Medium Storage Unit Signal Interpreter Advanced Signal Interpreter Transport Network Coupler Light Armor Plating Hacking Suite Hacking Suite System Shield Light Assault Rifle Grenade Launcher Plasma Cutter [Rating: 13] Favorites ----------- Power Ion Engine Engine Ion Engine Propulsion Light Treads Treads Light Treads Leg Aluminum Leg Utility Large Storage Unit Storage Large Storage Unit Protection Light Armor Plating Weapon Light Assault Rifle Energy Gun Small Laser Energy Cannon Ion Cannon Ballistic Gun Light Assault Rifle Launcher Grenade Launcher Build | -11 -10 -10 ------- Run | Scr Mat Min Slots Evolved . | . . . Power . | . . . Propulsion . | . . . Utility . | . . . Weapon . | . . . Parts Attached 25 | 5 13 7 Power 3 | 1 2 . Engine 3 | 1 2 . Core . | . . . Reactor . | . . . Propulsion 6 | 2 4 . Treads 4 | 2 2 . Leg 2 | . 2 . Wheel . | . . . Hover . | . . . Flight . | . . . Utility 5 | 1 4 . Device . | . . . Storage 4 | 1 3 . Processor . | . . . Hackware . | . . . Protection 1 | . 1 . Artifact . | . . . Weapon 11 | 1 3 7 Energy Gun 2 | . 1 1 Energy Cannon 2 | . . 2 Ballistic Gun 4 | 1 1 2 Ballistic Cannon . | . . . Launcher 3 | . 1 2 Special Weapon . | . . . Impact Weapon . | . . . Slashing Weapon . | . . . Piercing Weapon . | . . . Special Melee Weapon . | . . . Unidentified Prototypes . | . . . Parts Lost 8 | . 4 4 Power 2 | . 1 1 Propulsion 2 | . 2 . Utility . | . . . Weapon 4 | . 1 3 Highest Loss Streak 4 | . 2 4 Average Slot Usage (%) 89 | . 87 99 Engine 13 | . 13 14 Treads 17 | . 19 . Leg 6 | . 3 28 Storage 19 | . 18 28 Protection 4 | . 5 . Energy Gun 4 | . 3 10 Ballistic Gun 19 | . 20 13 Launcher 3 | . 2 3 Naked Turns . | . . . Heaviest Build 42 | 8 42 41 Greatest Support 40 | 40 40 20 Greatest Overweight (x) 13 | . 13 2 Average Overweight (x) . | . . 2 Largest Inventory Capacity 16 | 6 16 16 Average Capacity 9 | 5 9 16 Most Carried 16 | 3 11 16 Average Carried 7 | 1 6 14 Final Capacity 16 | 6 16 16 Final Carried 13 | 3 11 13 Class Distribution -------------------- 100% | Mutant Dominant Class ---------------- Mutant | -10/Materials Mutant | -10/Mines Resources | -11 -10 -10 ----------- Run | Scr Mat Min Matter Collected 542 | 240 255 47 Remotely . | . . . Salvage Created 541 | . 538 3 Parts 44 | . 39 5 Haulers Intercepted 1 | . 1 . Recyclers Shooed 2 | . 1 1 Parts Field Recycled . | . . . Retrieved Matter . | . . . Parts Self-Destructed . | . . . Prevented . | . . . Kills | -11 -10 -10 ------- Run | Scr Mat Min Combat Hostiles Destroyed 20 | . 16 4 Guns 12 | . 12 . AOE 8 | . 4 4 Classes Destroyed 7 | . 6 1 Worker 1 | . 1 . Hauler 1 | . 1 . Operator 2 | . 2 . Watcher 1 | . 1 . Swarmer 9 | . 6 3 Grunt 10 | . 10 . Demolisher 1 | . . 1 Best Kill Streak 4 | . 4 3 Combat Bots Only 4 | . 4 3 Max Kills in Single Turn 3 | . 3 2 Gunslinging . | . . . Exploded 3 | . 3 2 Melee . | . . . Uniques/NPCs Destroyed . | . . . Combat | -11 -10 -10 -------- Run | Scr Mat Min Damage Taken 1278 | . 699 579 Core 267 | . 114 153 Absorbed by Shields . | . . . Core Remaining (%) 100 | 100 . . Volleys Fired 102 | . 93 9 Largest 2 | . 2 2 Hottest 70 | . 60 70 Shots Fired 167 | . 155 12 Gun 160 | . 154 6 Cannon 1 | . . 1 Launcher 6 | . 1 5 Special . | . . . Kinetic 142 | . 139 3 Thermal 16 | . 15 1 Explosive 6 | . 1 5 Electromagnetic 3 | . . 3 Robot Hit Streak 16 | . 16 3 Robot Miss Streak 5 | . 5 2 Penetration Max . | . . . Secondary Targets 1 | . 1 . Max Gunslinging Chain 1 | . 1 . Shots Hit Robots 103 | . 95 8 Core Hits 56 | . 44 12 Critical Hits 1 | . 1 . Critical Kills 1 | . 1 . Critical Parts Destroyed . | . . . Melee Attacks . | . . . Impact . | . . . Slashing . | . . . Piercing . | . . . Sneak Attacks . | . . . Combat Hostiles . | . . . Follow-up Attacks . | . . . Damage Inflicted 1572 | . 1297 275 Guns 895 | . 866 29 Cannons 23 | . . 23 Explosions 654 | . 431 223 Melee . | . . . Ramming . | . . . Kinetic 734 | . 719 15 Thermal 526 | . 503 23 Explosive 298 | . 75 223 Electromagnetic 14 | . . 14 Impact . | . . . Slashing . | . . . Piercing . | . . . Highest Corruption . | . . . Average Corruption . | . . . Corruption Purged . | . . . Overload Shots . | . . . Overflow Damage 118 | . 102 16 Projectiles . | . . . Explosions 118 | . 102 16 Melee . | . . . Knockbacks . | . . . Impact . | . . . Kinetic . | . . . Secondary . | . . . Self-Inflicted Damage 119 | . 99 20 Shots 3 | . 2 1 Rammed . | . . . Targets Rammed . | . . . Kicked . | . . . Crushed . | . . . Highest Temperature 181 | . 181 60 Average Temperature 38 | . 39 27 Received Heat Transfer 252 | . 252 . Siege Activations . | . . . Robots Corrupted . | . . . Combat Hostiles . | . . . Parts Fried . | . . . Impact Corruptions . | . . . Robots Melted . | . . . Combat Hostiles . | . . . Parts Melted . | . . . Heat Transferred 662 | . 625 37 Parts Sabotaged . | . . . Parts Stolen . | . . . Parts Stripped . | . . . Power Chain Reactions . | . . . Missiles Intercepted . | . . . Alert | -11 -10 -10 ------- Run | Scr Mat Min Peak Influence 231 | . 231 106 Average Influence 86 | . 92 73 Maximum Alert Level 1 | . 1 . Low Security (%) 95 | 100 94 100 Level 1 4 | . 5 . Level 2 . | . . . Level 3 . | . . . Level 4 . | . . . Level 5 . | . . . High Security . | . . . Max Security . | . . . Squads Dispatched 3 | . 3 . Investigation 1 | . 1 . Extermination . | . . . Reinforcement 2 | . 2 . Assault . | . . . Garrison . | . . . Intercept . | . . . Construction Impeded . | . . . Haulers Reinforced . | . . . Stealth | -11 -10 -10 --------- Run | Scr Mat Min Distress Signals 3 | . 3 . Communications Jammed . | . . . Distress Signals . | . . . Times Spotted 38 | . 33 5 Peak Tracking Total 5 | . 5 3 Tactical Retreats 3 | . 3 . Traps | -11 -10 -10 ------- Run | Scr Mat Min Traps Triggered 3 | . 2 1 Indirectly . | . . . Trap Hack Attempts . | . . . Triggered . | . . . Disarmed . | . . . Reprogrammed . | . . . Reused . | . . . Traps Extracted . | . . . Installed . | . . . Triggered . | . . . Machines | -11 -10 -10 ---------- Run | Scr Mat Min Machines Disabled 4 | . 4 . Max in Single Turn 4 | . 4 . Machines Sabotaged . | . . . Garrisons Compromised . | . . . Overloaded Fab Kills . | . . . Fab Network Shutdowns . | . . . Hacking | -11 -10 -10 --------- Run | Scr Mat Min Machines Accessed 6 | . 5 1 Terminals 5 | . 5 . Fabricators . | . . . Repair Stations . | . . . Recycling Units . | . . . Scanalyzers . | . . . Garrison Access . | . . . Total Hacks 12 | . 11 1 Successful 9 | . 8 1 Failed 3 | . 3 . Catastrophic . | . . . Database Lockouts . | . . . Manual 7 | . 7 . Terminals 11 | . 11 . Fabricators . | . . . Repair Stations . | . . . Recycling Units . | . . . Scanalyzers . | . . . Garrison Access . | . . . Terminal Hacks 5 | . 4 1 Open Door 1 | . . 1 Branch Access Points 1 | . 1 . Terminal Index 1 | . 1 . Alert Level 1 | . 1 . Zone Layout 1 | . 1 . Fabricator Hacks . | . . . Repair Station Hacks . | . . . Recycling Unit Hacks . | . . . Scanalyzer . | . . . Garrison Access Hacks . | . . . Unauthorized Hacks 8 | . 8 . Terminals 4 | . 4 . Track 1 | . 1 . Assimilate 1 | . 1 . Botnet 1 | . 1 . Operators 1 | . 1 . Fabricators . | . . . Repair Stations . | . . . Recycling Units . | . . . Scanalyzers . | . . . Garrison Access . | . . . Data Cores Recovered . | . . . Used . | . . . Hacking Detections 4 | . 4 . Full Trace Events . | . . . Feedback Events . | . . . Feedback Blocked . | . . . Robot Schematics Acquired . | . . . Robots Built . | . . . Matter . | . . . Time . | . . . Total Robot Build Rating . | . . . Part Schematics Acquired . | . . . Parts Built . | . . . Matter . | . . . Time . | . . . Total Part Build Rating . | . . . Parts Repaired . | . . . Time . | . . . Parts Recycled . | . . . Recycled Matter . | . . . Retrieved Matter . | . . . Retrieved Components . | . . . Parts Scanalyzed . | . . . Part Schematics Acquired . | . . . Parts Damaged . | . . . Bothacking | -11 -10 -10 ------------ Run | Scr Mat Min Used RIF Installer . | . . . Robots Hacked . | . . . Non-combat . | . . . Combat . | . . . Robot Hacks Applied . | . . . Relay Couplers Released . | . . . Robots Rewired . | . . . Allies Hacked . | . . . Hacks Repelled . | . . . Allies | -11 -10 -10 -------- Run | Scr Mat Min Total Allies . | . . . Largest Group . | . . . Highest-Rated Group . | . . . Highest-Rated Ally . | . . . Total Orders . | . . . Ally Attacks . | . . . Total Damage . | . . . Kills . | . . . Allies Corrupted . | . . . Allies Melted . | . . . Intel | -11 -10 -10 ------- Run | Scr Mat Min Robot Analysis Total . | . . . Derelict Logs Recovered . | . . . Drone Launches . | . . . Drone Recoveries . | . . . Exploration | -11 -10 -10 ------------- Run | Scr Mat Min Turns Passed 1848 | 69 1542 237 Spaces Moved 872 | 43 716 113 Core 26 | 8 18 . Treads 631 | 35 596 . Legs 215 | . 102 113 Wheels . | . . . Hover . | . . . Flight . | . . . Fastest Speed 50 | 50 100 180 Average Speed 176 | 139 178 180 Slowest Speed 700 | 160 700 180 Overloaded Moves . | . . . Propulsion Burnouts . | . . . Robots Hopped . | . . . Cave-ins Triggered . | . . . Exploration Rate (%) 41 | 4 85 36 Regions Visited 2 Branch Regions 1 Pre-discovered Areas . | . . . Known Exits Taken 1 | . 1 . Unknown Exits Taken 1 | 1 . . Scrap Searched 1 | . . 1 Spaces Dug . | . . . Terrain Destroyed 87 | . 46 41 Melee . | . . . Projectile . | . . . AOE 87 | . 46 41 Actions | -11 -10 -10 --------- Run | Scr Mat Min Total 1038 | 50 853 135 Wait 15 | . 14 1 Move 870 | 42 715 113 Hop . | . . . Pick Up 21 | 3 14 4 Fast Attach 12 | 5 7 . Attach 7 | . 5 2 Detach 1 | . 1 . Swap 6 | . 1 5 Drop 4 | . 3 1 Fire 102 | . 93 9 Melee . | . . . Ram . | . . . Kick . | . . . Crush . | . . . Escape Stasis . | . . . Rewire . | . . . Trap . | . . . Miscellaneous . | . . . Route ------- -11/Scrapyard -10/Materials (discovered 4 exits: [*Mat x3] / *Min) -10/Mines (discovered 1 exit: [*Mat]) History --------- Turn | Location | Event 2 | -11/Scrapyard | Met Revision 17 40 | -11/Scrapyard | Discovered new exit (range 15) 70 | -11/Scrapyard | Entered Materials 146 | -10/Materials | Discovered new exit (range 7) 318 | -10/Materials | Build established: Mutant 636 | -10/Materials | Discovered new exit (range 5) 952 | -10/Materials | Discovered new exit (range 15) 1515 | -10/Materials | Identified exit to Mines 1612 | -10/Materials | Entered Mines 1624 | -10/Mines | Met a Derelict who couldn't figure out how to use a Trap Extractor 1625 | -10/Mines | Core integrity fell below 50% 1785 | -10/Mines | Discovered new exit (range 7) 1828 | -10/Mines | Assembled infested the area 1848 | -10/Mines | Core integrity fell below 20% 1849 | -10/Mines | Destroyed by D-53 Grenadier with Mini Grenade Launcher Last Messages --------------- 01801_ Found 47 Matter. 01801_ Found Seismic Analyzer. 01801_ Found Lgt. Cannon. 01801_ Found Sml. Laser. 01802_ Acquired 47 matter. 01828_ ALERT: Infestation in the mines, dispatching Demolisher response squad. 01836_ C-30 ARC bursts open, deploying its payload. 01836_ D-53 Grenadier unfolds itself. 01836_ U-05 Engineer lays Concrete. 01837_ K-01 Serf destroyed. 01837_ U-05 Engineer destroyed. 01839_ The unstable cave ceiling collapses. 01839_ Shock Rifle destroyed. 01841_ Lgt. Assault Rifle destroyed. 01844_ Ion Cannon destroyed. 01845_ The unstable cave ceiling collapses. 01845_ D-53 Grenadier destroyed. 01846_ The unstable cave ceiling collapses. 01847_ Ion Engine destroyed. Map ----- +----------------------------------------------------+ | ????????????????????????????????????????????? | | ????????????????????????????????????????????? | | ????????????????????????????????????????????? | | ????????????????????????????????????????????? | | ????????????????????????????????????????????? | | ????????????????????????????????????????????? | | ????????????????????????????????????????????? | | ????????????????????????????????????????????? | | ????????????????????????????????????????????? | | ????????????????????????????????????????????? | | ????????????????????????????????????????????? | | ????????????????????????????????????????????? | | ????????????????????????????????????????????? | | ????????????????????????????????????????????? | | ????????????????????????????????????????????? | | ????????????????????????????????????????????? | | ?????????##?????????????????????????????????? | | ######### ???????????????????????????????? | | #????????????????????######???????? | | #???????????####???? ##??????? | | ###### ##??????###??# #### # ?????? | | ##????# #??????## ### # ????? | | ##???### #??????# # ???????? | | ##??## ###????# * ??????????? | | #### ####### # ???? | | @ #???? | | = # #???? | | ## ########## #?????????????? | | ## # ## # #??????# #?????????????? | | ?# # #??????# % k#?????????????? | | ## #### ##?????# d #####??????????? | | #?????# ## ####???????? | | ## [ #?????## < #???????? | | ?######## ######### # ! #???????? | | ?????## ### !! #???????? | | ?????# ?## ! #???????? | | ?????# ##### ##### ]!! #???????? | | ?????# ####???###???# [ ! #???????? | | ?????# ##????????????# #######???????? | | ?????## ##?????????????## #?????????????? | | ??????###????????????????## ##?????????????? | | ??????????????????????????####??????????????? | | ????????????????????????????????????????????? | | | | | | | | | | | | | | | +----------------------------------------------------+ Best States ------------- Heat Dissipation 25 Energy Generation 10 Energy Capacity 250 Matter Stores 300 Matter Capacity 300 Sight Range 16 Terrain Scan Density 10 Armor Coverage 150 Evasion (%) 40 Recoil Reduction 2 Item Schematics ----------------- None Robot Schematics ------------------ None Fabricated ------------ Nothing Alien Tech Used ----------------- None Achievements -------------- None Challenges ------------ None Game ------ Seed MediumSignalCorpse Manual? 0 Play Time 00:09:45 Cumulative 212.0 hours Start 2019.12.11 @ 20:38:01 End 2019.12.11 @ 20:46:16 Sessions 1 Manual Loads 0 Difficulty Rogue Special Mode None Game No. 337 Rogue 337 Adventurer 0 Explorer 0 Win Type - Total 4 Types 2/0/1/1/0/0/0 Lore% 76 Gallery% 74 Achievement% 57 Wizard Run 0 Options --------- ASCII 0 Keyboard 1 Movement Numpad Keybinds 0 Fullscreen 2 Font 18/X11Bold Map View 76x50 Tactical HUD 1 Map Filters NONE Filters NONE Steam 1 RUN: b3f76479-c105-47d0-9037-5a85f76d3b4e